fUSD/lending_fUSD_20260217
["ID","MTS","AMOUNT","RATE_DAILY","PERIOD"]
[405789718,1771311047476,-151.0,0.00017899,5]
[405789719,1771311047486,-500.0,0.00017899,5]
[405789720,1771311047497,-500.0,0.00017899,5]
[405789721,1771311047510,-500.0,0.00017899,5]
[405789722,1771311047519,-500.0,0.00017899,5]
[405789723,1771311047530,-200.0,0.00017899,5]
[405789724,1771311047540,-500.0,0.00017899,5]
[405789725,1771311047552,-500.0,0.00017899,5]
[405789726,1771311047563,-500.0,0.00017899,5]
[405789727,1771311047573,-500.0,0.00017899,5]
[405789728,1771311047583,-200.0,0.00017899,5]
[405789729,1771311047593,-500.0,0.00017899,5]
[405789730,1771311047603,-500.0,0.00017899,5]
[405789731,1771311047614,-721.12765535,0.00017899,5]
[405789732,1771311047624,-160.0,0.00017899,5]
[405789733,1771311047634,-3000.0,0.00017899,5]
[405789734,1771311047645,-151.0,0.00017899,5]
[405789735,1771311047655,-500.0,0.00017899,5]
[405789736,1771311047666,-500.0,0.00017899,5]
[405789737,1771311047676,-160.32510575,0.00017899,5]
[405789738,1771311047686,-747.8093786,0.00017899,5]
[405789739,1771311047696,-3000.0,0.00017899,5]
[405789740,1771311047706,-151.0,0.00017899,5]
[405789741,1771311047717,-500.0,0.00017899,5]
[405789742,1771311047727,-500.0,0.00017899,5]
[405789743,1771311047738,-775.47832561,0.00017899,5]
[405789744,1771311047749,-151.0,0.00017899,5]
[405789745,1771311047761,-500.0,0.00017899,5]
[405789746,1771311047771,-500.0,0.00017899,5]
[405789747,1771311047782,-3000.0,0.00017899,5]
[405789748,1771311047794,-804.17102365,0.00017899,5]
[405789749,1771311047804,-151.0,0.00017899,5]
[405789750,1771311047814,-500.0,0.00017899,5]
[405789751,1771311047825,-3000.0,0.00017899,5]
[405789752,1771311047835,-500.0,0.00017899,5]
[405789753,1771311047845,-833.92535153,0.00017899,5]
[405789754,1771311047856,-151.0,0.00017899,5]
[405789755,1771311047868,-3000.0,0.00017899,5]
[405789756,1771311047890,-500.0,0.00017899,5]
[405789757,1771311047907,-864.78058953,0.00017899,5]
[405789758,1771311047921,-151.0,0.00017899,5]
[405789759,1771311047933,-3000.0,0.00017899,5]
[405789760,1771311047945,-500.0,0.00017899,5]
[405789761,1771311047957,-514.41469683,0.00017899,5]
[405789762,1771311047969,-151.0,0.00017899,5]
[405789763,1771311047981,-3000.0,0.00017899,5]
[405789764,1771311047994,-500.0,0.00017899,5]
[405789765,1771311048007,-261.90795033,0.00017899,5]
[405789766,1771311048019,-3099.28707761,0.00017899,5]
[405789767,1771311048031,-500.0,0.00017899,5]
[405789768,1771311048044,-177.7218892,0.00017899,5]
[405789769,1771311048056,-162.380719,0.00017899,5]
[405789770,1771311048068,-168.3888056,0.00017899,5]
[405789771,1771311048080,-168.19115038,0.00017899,5]
[405789772,1771311048093,-250.0,0.00017899,5]
[405789773,1771311048105,-250.0,0.00017899,5]
[405789774,1771311048117,-500.0,0.00017899,5]
[405789775,1771311048130,-250.0,0.00017899,5]
[405789776,1771311048142,-503.55960548,0.00017899,5]
[405789777,1771311048154,-250.0,0.00017899,5]
[405789778,1771311048165,-250.0,0.00017899,5]
[405789779,1771311048177,-250.0,0.00017899,5]
[405789780,1771311048189,-299.40346672,0.00017899,5]
[405789781,1771311048201,-200.0,0.00017899,5]
[405789782,1771311048213,-250.0,0.00017899,5]
[405789783,1771311048229,-201.41552809,0.00017899,5]
[405789784,1771311048242,-250.0,0.00017899,5]
[405789785,1771311048254,-250.0,0.00017899,5]
[405789786,1771311048267,-250.0,0.00017899,5]
[405789787,1771311048281,-250.0,0.00017899,5]
[405789788,1771311048293,-250.0,0.00017899,5]
[405789789,1771311048305,-250.0,0.00017899,5]
[405789790,1771311048317,-250.0,0.00017899,5]
[405789791,1771311048330,-250.0,0.00017899,5]
[405789792,1771311048342,-302.70619241,0.00017899,5]
[405789793,1771311048354,-250.0,0.00017899,5]
[405789794,1771311048367,-250.0,0.00017899,5]
[405789795,1771311048379,-250.0,0.00017899,5]
[405789796,1771311048390,-250.0,0.00017899,5]
[405789797,1771311048402,-250.0,0.00017899,5]
[405789798,1771311048414,-250.0,0.00017899,5]
[405789799,1771311048426,-250.0,0.00017899,5]
[405789800,1771311048438,-250.0,0.00017899,5]
[405789801,1771311048450,-250.0,0.00017899,5]
[405789802,1771311048462,-250.0,0.00017899,5]
[405789803,1771311048474,-250.0,0.00017899,5]
[405789804,1771311048486,-279.55615727,0.00017899,5]
[405789805,1771311048498,-250.0,0.00017899,5]
[405789806,1771311048510,-250.0,0.00017899,5]
[405789807,1771311048521,-250.0,0.00017899,5]
[405789808,1771311048532,-250.0,0.00017899,5]
[405789809,1771311048544,-250.0,0.00017899,5]
[405789810,1771311048556,-250.0,0.00017899,5]
[405789811,1771311048568,-250.0,0.00017899,5]
[405789812,1771311048579,-250.0,0.00017899,5]
[405789813,1771311048591,-693.3919763,0.00017899,5]
[405789814,1771311048603,-250.0,0.00017899,5]
[405789815,1771311048614,-719.04747942,0.00017899,5]
[405789816,1771311048625,-250.0,0.00017899,5]
[405789817,1771311048636,-745.65223616,0.00017899,5]
[405789818,1771311048648,-250.0,0.00017899,5]
[405789819,1771311048660,-773.2413689,0.00017899,5]
[405789820,1771311048671,-250.0,0.00017899,5]
[405789821,1771311048683,-801.85129955,0.00017899,5]
[405789822,1771311048694,-250.0,0.00017899,5]
[405789823,1771311048706,-831.51979763,0.00017899,5]
[405789824,1771311048716,-250.0,0.00017899,5]
[405789825,1771311048727,-862.28603014,0.00017899,5]
[405789826,1771311048738,-250.0,0.00017899,5]
[405789827,1771311048752,-894.19061326,0.00017899,5]
[405789828,1771311048764,-927.27566595,0.00017899,5]
[405789829,1771311048775,-961.58486559,0.00017899,5]
[405789830,1771311048787,-997.16350561,0.00017899,5]
[405789831,1771311048798,-25000.0,0.000179,3]
[405789832,1771311048809,-992.55377071,0.000179,2]
[405789833,1771311048821,-1485.03346152,0.000179,2]
[405789834,1771311048832,-151.47260236,0.000179,2]
[405789835,1771311048843,-827.98134311,0.0001799,2]
[405789836,1771311048855,-300.0,0.00017999,2]
[405789837,1771311048866,-666.0,0.00017999,2]
[405789838,1771311048878,-300.0,0.00017999,2]
[405789839,1771311048889,-666.0,0.00017999,2]
[405789840,1771311048900,-300.0,0.00017999,2]
[405789841,1771311048912,-300.0,0.00017999,2]
[405789842,1771311048923,-300.0,0.00017999,2]
[405789843,1771311048933,-666.0,0.00017999,2]
[405789844,1771311048945,-6599349.59324137,0.00018,2]
[405789845,1771311048961,-7514.99024711,0.00018,2]
[405789846,1771311048972,-70287.04519593,0.00018,2]
[405789847,1771311048983,-1007890.922871,0.00018,2]
[405789848,1771311050382,-151.0,0.00017853,2]
[405789849,1771311050392,-151.0,0.00017997,2]
[405789850,1771311050403,-2381.06685013,0.00018,2]
[405789851,1771311050419,-766057.37203998,0.00018,2]
[405789852,1771311050931,-328.39178334,7.782e-05,2]
[405789853,1771311050948,-1700.99707378,7.782e-05,2]
[405789854,1771311050958,-8919.83902303,0.00018,2]
[405789855,1771311050984,-642.20258695,0.00018,2]
[405789856,1771311051243,-270.22,0.00018,2]
[405789857,1771311051256,-366.20976575,0.00018,2]
[405789858,1771311051273,-69372.15054666,0.00018,2]
[405789859,1771311072186,305.28712047,7.289e-05,2]
[405789860,1771311079208,1489.48744838,7.289e-05,2]
[405789861,1771311079254,1489.48744838,7.289e-05,2]
[405789862,1771311079303,1489.48744838,7.289e-05,2]
[405789863,1771311079354,1489.48744838,7.289e-05,2]
[405789864,1771311079403,1489.48744838,7.289e-05,2]
[405789865,1771311079448,1489.48744838,7.289e-05,2]
[405789866,1771311079492,757.79818925,7.289e-05,2]
[405789867,1771311079523,731.68925913,7.289e-05,2]
[405789868,1771311079568,1489.48744838,7.289e-05,2]
[405789869,1771311079651,1489.48744838,7.289e-05,2]
[405789870,1771311079695,1489.48744838,7.289e-05,2]
[405789871,1771311079741,1489.48744838,7.289e-05,2]
[405789872,1771311079791,1489.48744838,7.289e-05,2]
[405789873,1771311079881,1489.48744838,7.289e-05,2]
[405789874,1771311079927,331.39605059,7.289e-05,2]
[405789875,1771311079958,1158.09139779,7.289e-05,2]
[405789876,1771311079999,1489.48744838,7.289e-05,2]
[405789877,1771311080041,1489.48744838,7.289e-05,2]
[405789878,1771311080087,1489.48744838,7.289e-05,2]
[405789879,1771311080137,1489.48744838,7.289e-05,2]
[405789880,1771311080177,1489.48744838,7.289e-05,2]
[405789881,1771311080218,1394.48136031,7.289e-05,2]
[405789882,1771311085936,-95.00608807,7.289e-05,2]
[405789883,1771311085974,-1489.48744838,7.289e-05,2]
[405789884,1771311086013,-1489.48744838,7.289e-05,2]
[405789885,1771311086047,-1489.48744838,7.289e-05,2]
[405789886,1771311086172,-1489.48744838,7.289e-05,2]
[405789887,1771311086205,-1489.48744838,7.289e-05,2]
[405789888,1771311086238,-1489.48744838,7.289e-05,2]
[405789889,1771311086330,-1489.48744838,7.289e-05,2]
[405789890,1771311086363,-1489.48744838,7.289e-05,2]
[405789891,1771311086396,-1489.48744838,7.289e-05,2]
[405789897,1771311293471,172.0,5.5e-07,2]
[405789902,1771311715026,-300.0,7.54e-05,2]
[405789903,1771311715048,-250.0,7.541e-05,2]
[405789904,1771311715069,-9450.0,7.541e-05,2]
[405789905,1771311716513,-8933.89,7.541e-05,2]
[405789906,1771311716536,-1066.11,7.541e-05,2]
[405789907,1771311716885,-1004.9,7.541e-05,2]
[405789908,1771311716906,-250.0,7.561e-05,2]
[405789909,1771311716926,-8745.1,7.569e-05,2]
[405789910,1771311717791,-10000.0,7.569e-05,2]
[405789911,1771311717841,-10000.0,7.569e-05,2]
[405789912,1771311718089,-8085.16049043,7.569e-05,2]
[405789913,1771311718109,-151.0,7.576e-05,2]
[405789914,1771311718131,-182.0,7.578e-05,2]
[405789915,1771311718154,-1200.0,7.578e-05,2]
[405789916,1771311718175,-150.0,7.578e-05,2]
[405789917,1771311718196,-231.83950957,7.578e-05,2]
[405789918,1771311718595,-68.16049043,7.578e-05,2]
[405789919,1771311718616,-214.0,7.578e-05,2]
[405789920,1771311718640,-9717.83950957,7.579e-05,2]
[405789921,1771311719001,-10000.0,7.579e-05,2]
[405789922,1771311719346,-10000.0,7.579e-05,2]
[405789923,1771311719924,-10000.0,7.579e-05,2]
[405789924,1771311720267,-10000.0,7.579e-05,2]
[405789925,1771311720659,-10000.0,7.579e-05,2]
[405789926,1771311721042,-10000.0,7.579e-05,2]
[405789928,1771311736953,-300.0,7.578e-05,2]
[405789929,1771311736979,-9700.0,7.579e-05,2]
[405789930,1771311737410,-10000.0,7.579e-05,2]
[405789931,1771311737973,-10000.0,7.579e-05,2]
[405789932,1771311738391,-10000.0,7.579e-05,2]
[405789933,1771311739214,-10000.0,7.579e-05,2]
[405789934,1771311739286,-10000.0,7.579e-05,2]
[405789935,1771311739649,-10000.0,7.579e-05,2]
[405789936,1771311740096,-10000.0,7.579e-05,2]
[405789937,1771311740164,298.78,7.5e-05,2]
[405789938,1771311740482,-10000.0,7.579e-05,2]
[405789939,1771311740907,-10000.0,7.579e-05,2]
[405789940,1771311741310,-10000.0,7.579e-05,2]
[405789941,1771311741840,-10000.0,7.579e-05,2]
[405789942,1771311742983,-10000.0,7.579e-05,2]
[405789943,1771311744195,-10000.0,7.579e-05,2]
[405789944,1771311745191,-10000.0,7.579e-05,2]
[405789945,1771311844408,225.35,6.112e-05,2]
[405789946,1771311844590,225.35,6.723e-05,2]
[405789947,1771311844783,225.35,7.334e-05,2]
[405789949,1771312033004,5530.0,0.00011,3]
[405789951,1771312064387,5530.0,0.00011,3]
[405789952,1771312096160,5530.0,0.000108,3]
[405789953,1771312100945,9323.95,7.337e-05,2]
[405789954,1771312100966,6206.29,7.337e-05,2]
[405789955,1771312124199,3793.71,7.562e-05,2]
[405789956,1771312124221,10000.0,7.562e-05,2]
[405789957,1771312124244,10000.0,7.562e-05,2]
[405789958,1771312124265,10000.0,7.562e-05,2]
[405789959,1771312124286,10000.0,7.562e-05,2]
[405789960,1771312124309,10000.0,7.562e-05,2]
[405789961,1771312124333,10000.0,7.562e-05,2]
[405789962,1771312124361,10000.0,7.562e-05,2]
[405789963,1771312127742,5530.0,0.000108,3]
[405789964,1771312132420,500.0,7.291e-05,2]
[405789966,1771312160092,5530.0,0.00011,5]
[405789967,1771312160330,5530.0,0.000106,3]
[405789968,1771312192007,5530.0,0.00011,5]
[405789969,1771312192236,5530.0,0.000106,3]
[405789970,1771312223553,5530.0,0.000109,5]
[405789971,1771312223775,1779.01126048,0.000105,3]
[405789972,1771312223818,3750.98873952,0.000105,3]
[405789977,1771312231914,-150.0,7.561e-05,2]
[405789978,1771312231925,-300.0,7.561e-05,2]
[405789979,1771312231935,-1200.0,7.561e-05,2]
[405789980,1771312231945,-250.0,7.562e-05,2]
[405789981,1771312231955,-118413.40614653,7.562e-05,2]
[405789982,1771312231967,-19842.92480617,7.562e-05,2]
[405789983,1771312231977,-2115.0564109,7.562e-05,2]
[405789984,1771312231986,-199.18,7.6e-05,2]
[405789985,1771312231996,-1029.34351084,7.6e-05,2]
[405789986,1771312232005,-9150.74,7.614e-05,2]
[405789987,1771312232015,-445.0,7.644e-05,2]
[405789988,1771312232024,-1000.0,7.699e-05,2]
[405789989,1771312232035,-337.92889973,7.844e-05,2]
[405789990,1771312232045,-395.21527876,7.844e-05,2]
[405789991,1771312232055,-180.81017305,7.844e-05,2]
[405789992,1771312232064,-1468.91307683,7.844e-05,2]
[405789993,1771312232073,-500.0,7.844e-05,2]
[405789994,1771312232087,-500.0,7.844e-05,2]
[405789995,1771312232097,-609.82248569,7.844e-05,2]
[405789996,1771312232106,-500.0,7.844e-05,2]
[405789997,1771312232116,-1468.91307683,7.844e-05,2]
[405789998,1771312232127,-500.0,7.844e-05,2]
[405789999,1771312232136,-500.0,7.844e-05,2]
[405790000,1771312232145,-1468.91307683,7.844e-05,2]
[405790001,1771312232156,-361.67462856,7.844e-05,2]
[405790003,1771312232166,-500.0,7.844e-05,2]
[405790004,1771312232176,-408.02844979,7.844e-05,2]
[405790006,1771312232186,-1468.91307683,7.844e-05,2]
[405790007,1771312232196,-500.0,7.844e-05,2]
[405790008,1771312232205,-1468.91307683,7.844e-05,2]
[405790009,1771312232215,-500.0,7.844e-05,2]
[405790010,1771312232225,-1468.91307683,7.844e-05,2]
[405790011,1771312232235,-1468.91307683,7.844e-05,2]
[405790012,1771312232245,-1468.91307683,7.844e-05,2]
[405790013,1771312232254,-1468.91307683,7.844e-05,2]
[405790015,1771312232263,-1468.91307683,7.844e-05,2]
[405790017,1771312232273,-1468.91307683,7.844e-05,2]
[405790020,1771312232283,-1468.91307683,7.844e-05,2]
[405790022,1771312232292,-1468.91307683,7.844e-05,2]
[405790024,1771312232302,-1468.91307683,7.844e-05,2]
[405790025,1771312232311,-1468.91307683,7.844e-05,2]
[405790026,1771312232320,-1468.91307683,7.844e-05,2]
[405790027,1771312232330,-1468.91307683,7.844e-05,2]
[405790028,1771312232341,-1468.91307683,7.844e-05,2]
[405790029,1771312232351,-1468.91307683,7.844e-05,2]
[405790030,1771312232360,-1468.91307683,7.844e-05,2]
[405790031,1771312232371,-1468.91307683,7.844e-05,2]
[405790032,1771312232380,-1468.91307683,7.844e-05,2]
[405790033,1771312232390,-1468.91307683,7.844e-05,2]
[405790034,1771312232400,-1468.91307683,7.844e-05,2]
[405790035,1771312232410,-1468.91307683,7.844e-05,2]
[405790036,1771312232420,-1468.91307683,7.844e-05,2]
[405790037,1771312232430,-1468.91307683,7.844e-05,2]
[405790038,1771312232440,-1468.91307683,7.844e-05,2]
[405790039,1771312232450,-1468.91307683,7.844e-05,2]
[405790040,1771312232460,-1468.91307683,7.844e-05,2]
[405790041,1771312232470,-1468.91307683,7.844e-05,2]
[405790042,1771312232480,-1468.91307683,7.844e-05,2]
[405790043,1771312232489,-1468.91307683,7.844e-05,2]
[405790044,1771312232499,-1468.91307683,7.844e-05,2]
[405790045,1771312232509,-809.30507918,7.844e-05,2]
[405790046,1771312232542,-659.60799765,7.844e-05,2]
[405790047,1771312232552,-1468.91307683,7.844e-05,2]
[405790048,1771312232561,-848.51838962,7.844e-05,2]
[405790057,1771312238109,-620.39468721,7.844e-05,2]
[405790058,1771312238120,-1468.91307683,7.844e-05,2]
[405790059,1771312238132,-1468.91307683,7.844e-05,2]
[405790060,1771312238143,-1468.91307683,7.844e-05,2]
[405790061,1771312238154,-1468.91307683,7.844e-05,2]
[405790062,1771312238166,-1468.91307683,7.844e-05,2]
[405790063,1771312238177,-1468.91307683,7.844e-05,2]
[405790064,1771312238187,-1965.07962058,7.844e-05,2]
[405790065,1771312238203,-1965.07962058,7.844e-05,2]
[405790066,1771312238214,-1965.07962058,7.844e-05,2]
[405790067,1771312238225,-1965.07962058,7.844e-05,2]
[405790068,1771312238236,-1965.07962058,7.844e-05,2]
[405790069,1771312238246,-1965.07962058,7.844e-05,2]
[405790070,1771312238256,-1965.07962058,7.844e-05,2]
[405790071,1771312238267,-1965.07962058,7.844e-05,2]
[405790072,1771312238277,-1965.07962058,7.844e-05,2]
[405790074,1771312238288,-1965.07962058,7.844e-05,2]
[405790076,1771312238299,-1965.07962058,7.844e-05,2]
[405790078,1771312238309,-1965.07962058,7.844e-05,2]
[405790080,1771312238320,-1965.07962058,7.844e-05,2]
[405790082,1771312238331,-1965.07962058,7.844e-05,2]
[405790084,1771312238342,-1965.07962058,7.844e-05,2]
[405790086,1771312238352,-1965.07962058,7.844e-05,2]
[405790088,1771312238363,-1965.07962058,7.844e-05,2]
[405790090,1771312238373,-1965.07962058,7.844e-05,2]
[405790092,1771312238383,-1965.07962058,7.844e-05,2]
[405790094,1771312238393,-1965.07962058,7.844e-05,2]
[405790097,1771312238403,-1965.07962058,7.844e-05,2]
[405790099,1771312238414,-1965.07962058,7.844e-05,2]
[405790101,1771312238424,-1965.07962058,7.844e-05,2]
[405790103,1771312238434,-1965.07962058,7.844e-05,2]
[405790105,1771312238444,-1965.07962058,7.844e-05,2]
[405790107,1771312238454,-1965.07962058,7.844e-05,2]
[405790109,1771312238465,-1965.07962058,7.844e-05,2]
[405790111,1771312238475,-1965.07962058,7.844e-05,2]
[405790113,1771312238485,-3500000.0,7.845e-05,2]
[405790115,1771312238496,-3518.78376292,7.944e-05,2]
[405790118,1771312238507,-2482.09380604,7.944e-05,2]
[405790120,1771312238517,-266.21846972,7.944e-05,2]
[405790122,1771312238528,-12541.498417,7.945e-05,2]
[405790124,1771312238538,-225.35,7.946e-05,2]
[405790127,1771312238553,-1059.0,8.063e-05,2]
[405790129,1771312238565,-223.0,8.073e-05,2]
[405790131,1771312238577,-354.0,8.073e-05,2]
[405790133,1771312238596,-2032.9993,8.119e-05,2]
[405790135,1771312238607,-26730.2995,8.119e-05,2]
[405790137,1771312238617,-9999.99,8.165e-05,2]
[405790139,1771312238627,-9999.99,8.165e-05,2]
[405790141,1771312238637,-150.99,8.165e-05,2]
[405790143,1771312238648,-4999.99,8.165e-05,2]
[405790145,1771312238665,-9999.99,8.165e-05,2]
[405790147,1771312238680,-3706.48,8.165e-05,2]
[405790149,1771312238690,-311.5,8.165e-05,2]
[405790151,1771312238700,-9999.99,8.165e-05,2]
[405790153,1771312238710,-1542.1,8.165e-05,2]
[405790156,1771312238721,-43057.18,8.165e-05,2]
[405790158,1771312238732,-14638.92,8.165e-05,2]
[405790160,1771312238743,-150.99,8.165e-05,2]
[405790162,1771312238753,-349.65,8.165e-05,2]
[405790164,1771312238764,-7136.18,8.165e-05,2]
[405790166,1771312238774,-299.99,8.165e-05,2]
[405790168,1771312238783,-761.78,8.165e-05,2]
[405790170,1771312238794,-999.99,8.165e-05,2]
[405790172,1771312238804,-2984.7,8.165e-05,2]
[405790174,1771312238814,-14037.81,8.165e-05,2]
[405790176,1771312238825,-1473.32,8.165e-05,2]
[405790178,1771312238835,-96057.45,8.165e-05,2]
[405790181,1771312238845,-9999.99,8.165e-05,2]
[405790183,1771312238856,-5914.98,8.165e-05,2]
[405790185,1771312238866,-9999.99,8.165e-05,2]
[405790187,1771312238876,-499.99,8.165e-05,2]
[405790189,1771312238886,-1184.93,8.165e-05,2]
[405790190,1771312238896,-81423.96,8.165e-05,2]
[405790191,1771312238907,-38674.68,8.166e-05,2]
[405790192,1771312238917,-200.0,8.208e-05,2]
[405790193,1771312238933,-500.0,8.219e-05,2]
[405790194,1771312238944,-500.0,8.219e-05,2]
[405790195,1771312238954,-500.0,8.219e-05,2]
[405790196,1771312238965,-405.13711522,8.219e-05,2]
[405790197,1771312238976,-150.0,8.219e-05,2]
[405790198,1771312238986,-170.008661,8.219e-05,2]
[405790199,1771312238997,-190.017323,8.219e-05,2]
[405790200,1771312239007,-210.025984,8.219e-05,2]
[405790201,1771312239018,-230.034646,8.219e-05,2]
[405790202,1771312239029,-250.043307,8.219e-05,2]
[405790203,1771312239039,-270.051969,8.219e-05,2]
[405790204,1771312239051,-290.06063,8.219e-05,2]
[405790205,1771312239061,-310.069292,8.219e-05,2]
[405790206,1771312239073,-330.077953,8.219e-05,2]
[405790207,1771312239087,-150.0,8.219e-05,2]
[405790208,1771312239099,-237.199733,8.219e-05,2]
[405790209,1771312239109,-324.399466,8.219e-05,2]
[405790210,1771312239119,-411.5992,8.219e-05,2]
[405790211,1771312239130,-498.798933,8.219e-05,2]
[405790212,1771312239141,-585.998666,8.219e-05,2]
[405790213,1771312239152,-673.1984,8.219e-05,2]
[405790214,1771312239162,-760.398133,8.219e-05,2]
[405790215,1771312239172,-847.597866,8.219e-05,2]
[405790216,1771312239182,-934.7976,8.219e-05,2]
[405790217,1771312239192,-166.421882,8.219e-05,2]
[405790218,1771312239203,-4193.06,8.219e-05,2]
[405790219,1771312239213,-500.0,8.219e-05,2]
[405790220,1771312239223,-255.0,8.317e-05,2]
[405790221,1771312239233,-420.0,8.317e-05,2]
[405790222,1771312239244,-1680.0,8.317e-05,2]
[405790223,1771312239254,-250.0,8.317e-05,2]
[405790224,1771312239265,-250.0,8.349e-05,2]
[405790225,1771312239275,-212050.0409527,8.354e-05,2]
[405790226,1771312239285,-500.0,8.493e-05,2]
[405790227,1771312239300,-225.35,8.557e-05,2]
[405790228,1771312239310,-500.0,8.767e-05,2]
[405790229,1771312239320,-500.0,9.041e-05,2]
[405790230,1771312239331,-2000.324806,9.058e-05,2]
[405790231,1771312239341,-10169.977501,9.058e-05,2]
[405790232,1771312239351,-212050.0409527,9.146e-05,2]
[405790233,1771312239361,-433.0,9.149e-05,2]
[405790234,1771312239371,-587.0,9.149e-05,2]
[405790235,1771312239381,-2351.0,9.149e-05,2]
[405790236,1771312239391,-225.35,9.168e-05,2]
[405790237,1771312239402,-500.0,9.315e-05,2]
[405790238,1771312239412,-500.0,9.589e-05,2]
[405790239,1771312239422,-2823.55,9.67e-05,2]
[405790240,1771312239432,-500.0,9.863e-05,2]
[405790241,1771312239443,-212050.0409527,9.937e-05,2]
[405790242,1771312239453,-250.0,9.991e-05,2]
[405790243,1771312239464,-4894.25746554,0.0001,2]
[405790244,1771312239474,-308.75469121,0.0001,2]
[405790245,1771312239487,-151.82749142,0.0001,2]
[405790246,1771312239497,-151.0,0.0001,2]
[405790247,1771312239507,-151.0,0.0001,2]
[405790248,1771312239517,-151.0,0.0001,2]
[405790249,1771312239529,-151.0,0.0001,2]
[405790250,1771312239539,-151.0,0.0001,2]
[405790251,1771312239549,-151.0,0.0001,2]
[405790252,1771312239560,-151.0,0.0001,2]
[405790253,1771312239570,-151.0,0.0001,2]
[405790254,1771312239580,-151.0,0.0001,2]
[405790255,1771312239590,-151.0,0.0001,2]
[405790256,1771312239600,-151.0,0.0001,2]
[405790257,1771312239610,-151.0,0.0001,2]
[405790258,1771312239620,-151.0,0.0001,2]
[405790259,1771312239630,-151.0,0.0001,2]
[405790260,1771312239641,-151.0,0.0001,2]
[405790261,1771312239651,-151.0,0.0001,2]
[405790262,1771312239662,-151.0,0.0001,2]
[405790263,1771312239672,-151.0,0.0001,2]
[405790264,1771312239682,-151.0,0.0001,2]
[405790265,1771312239691,-151.0,0.0001,2]
[405790266,1771312239701,-827.98134311,0.0001,2]
[405790267,1771312239712,-827.98134311,0.0001,2]
[405790268,1771312239722,-736.0,0.00010064,2]
[405790269,1771312239732,-823.0,0.00010064,2]
[405790275,1771312240204,-3292.0,0.00010064,2]
[405790276,1771312240216,-129258.0,0.000101,2]
[405790277,1771312240226,-898.32890406,0.00010128,2]
[405790278,1771312240236,-500.0,0.00010137,2]
[405790279,1771312240246,-500.0,0.00010411,2]
[405790280,1771312240255,-504.47430688,0.00010685,2]
[405790281,1771312240265,-500.0,0.00010712,2]
[405790282,1771312240275,-500.0,0.00010712,2]
[405790283,1771312240285,-500.0,0.00010712,2]
[405790284,1771312240296,-500.0,0.00010712,2]
[405790285,1771312240306,-500.0,0.00010712,2]
[405790286,1771312240316,-150.0,0.00010712,2]
[405790287,1771312240326,-500.0,0.00010712,2]
[405790288,1771312240337,-500.0,0.00010712,2]
[405790289,1771312240347,-150.31509327,0.00010712,2]
[405790290,1771312240358,-500.0,0.00010712,2]
[405790291,1771312240368,-500.0,0.00010712,2]
[405790292,1771312240378,-596.0,0.00010712,2]
[405790293,1771312240388,-500.0,0.00010712,2]
[405790294,1771312240398,-150.0,0.00010712,2]
[405790295,1771312240408,-500.0,0.00010712,2]
[405790296,1771312240418,-500.0,0.00010712,2]
[405790297,1771312240428,-500.0,0.00010712,2]
[405790298,1771312240438,-150.0,0.00010712,2]
[405790299,1771312240447,-500.0,0.00010712,2]
[405790300,1771312240457,-500.0,0.00010712,2]
[405790301,1771312240466,-150.0,0.00010712,2]
[405790302,1771312240476,-150.0,0.00010712,2]
[405790303,1771312240486,-150.0,0.00010712,2]
[405790304,1771312240496,-150.0,0.00010712,2]
[405790305,1771312240505,-500.0,0.00010712,2]
[405790306,1771312240515,-500.0,0.00010712,2]
[405790307,1771312240525,-150.0,0.00010712,2]
[405790308,1771312240535,-872.0,0.00010712,2]
[405790309,1771312240545,-4242.0,0.00010712,2]
[405790310,1771312240554,-500.0,0.00010712,2]
[405790311,1771312240564,-150.0,0.00010712,2]
[405790312,1771312240574,-500.0,0.00010712,2]
[405790313,1771312240583,-500.0,0.00010712,2]
[405790314,1771312240593,-150.0,0.00010712,2]
[405790315,1771312240603,-500.0,0.00010712,2]
[405790316,1771312240613,-500.0,0.00010712,2]